fUST/lending_fUST_20240830
["ID","MTS","AMOUNT","RATE_DAILY","PERIOD"]
[336661600,1725001852594,-500.0,0.00039178,120]
[336661601,1725001852604,-623.09,0.00039178,120]
[336661602,1725001852614,-500.0,0.00039178,120]
[336661603,1725001852624,-7475.89,0.00039178,8]
[336661604,1725001852633,-20000.0,0.000392,3]
[336661605,1725001852645,-150.112233,0.000392,8]
[336661606,1725001852656,-150.112233,0.000392,8]
[336661607,1725001852667,-150.112233,0.000392,5]
[336661608,1725001852678,-151.0,0.0003937,120]
[336661609,1725001852689,-500.0,0.00039452,120]
[336661610,1725001852698,-500.0,0.00039452,120]
[336661611,1725001852708,-177.84734113,0.00039452,120]
[336661612,1725001852719,-500.0,0.00039452,120]
[336661613,1725001852730,-500.0,0.00039452,120]
[336661614,1725001852739,-553.85,0.00039452,120]
[336661615,1725001852749,-151.0,0.00039452,14]
[336661616,1725001852759,-500.0,0.00039452,120]
[336661617,1725001852769,-500.0,0.00039452,120]
[336661618,1725001852779,-184.147385,0.00039452,14]
[336661619,1725001852791,-184.147385,0.00039452,14]
[336661620,1725001852803,-151.810332,0.00039452,14]
[336661621,1725001852813,-151.810332,0.00039452,14]
[336661622,1725001852822,-168.781842,0.00039452,14]
[336661623,1725001852832,-500.0,0.00039452,120]
[336661624,1725001852842,-931.21,0.00039452,120]
[336661625,1725001852852,-151.0,0.00039452,14]
[336661626,1725001852861,-500.0,0.00039452,120]
[336661627,1725001852871,-151.0,0.00039452,14]
[336661628,1725001852883,-500.0,0.00039452,120]
[336661629,1725001852893,-500.0,0.00039452,120]
[336661630,1725001852904,-151.0,0.00039452,14]
[336661631,1725001852914,-1523.37,0.00039452,120]
[336661632,1725001852925,-196.232414,0.00039452,14]
[336661633,1725001852935,-849.14,0.00039452,120]
[336661634,1725001852947,-196.232414,0.00039452,14]
[336661635,1725001852961,-500.0,0.00039452,120]
[336661636,1725001852971,-685.74,0.00039452,120]
[336661637,1725001852982,-500.0,0.00039452,120]
[336661638,1725001852993,-842.29,0.00039452,120]
[336661639,1725001853003,-248.14,0.00039452,120]
[336661640,1725001853015,-500.0,0.00039452,120]
[336661641,1725001853026,-623.09,0.00039452,120]
[336661642,1725001853036,-500.0,0.00039452,120]
[336661643,1725001853046,-7475.89,0.00039452,8]
[336661644,1725001853055,-151.0,0.00039726,14]
[336661645,1725001853064,-151.0,0.00039726,14]
[336661646,1725001853074,-500.0,0.00039726,120]
[336661647,1725001853083,-500.0,0.00039726,120]
[336661648,1725001853094,-151.0,0.00039726,14]
[336661649,1725001853103,-151.0,0.00039726,14]
[336661650,1725001853113,-299.145047,0.00039726,14]
[336661651,1725001853122,-164.682565,0.00039726,14]
[336661652,1725001853132,-164.682565,0.00039726,14]
[336661653,1725001853142,-151.0,0.00039726,14]
[336661654,1725001853151,-500.0,0.00039726,120]
[336661655,1725001853161,-553.85,0.00039726,120]
[336661656,1725001853171,-500.0,0.00039726,120]
[336661657,1725001853182,-639.51,0.00039726,120]
[336661658,1725001853191,-500.0,0.00039726,120]
[336661659,1725001853202,-931.21,0.00039726,120]
[336661660,1725001853213,-500.0,0.00039726,120]
[336661661,1725001853223,-500.0,0.00039726,120]
[336661662,1725001853234,-500.0,0.00039726,120]
[336661663,1725001853246,-1523.37,0.00039726,120]
[336661664,1725001853256,-849.14,0.00039726,120]
[336661665,1725001853268,-500.0,0.00039726,120]
[336661666,1725001853279,-685.74,0.00039726,120]
[336661667,1725001853290,-500.0,0.00039726,120]
[336661668,1725001853299,-842.29,0.00039726,120]
[336661669,1725001853309,-500.0,0.00039726,120]
[336661670,1725001853319,-891.134369,0.00039726,14]
[336661671,1725001853329,-891.134369,0.00039726,14]
[336661672,1725001853339,-623.09,0.00039726,120]
[336661673,1725001853348,-500.0,0.00039726,120]
[336661674,1725001853358,-7475.89,0.00039726,8]
[336661675,1725001853368,-170.0,0.00039871,14]
[336661676,1725001853379,-150.0,0.00039883,2]
[336661677,1725001853390,-11282.00960796,0.0004,7]
[336661678,1725001853522,-301.24211674,0.0004,7]
[336661680,1725001856588,165.077228,0.0001863,2]
[336661696,1725002277952,158.506341,0.00014247,2]
[336661703,1725002409803,165.077228,0.0001863,2]
[336661738,1725002919982,165.077228,0.0001863,2]
[336661765,1725003032740,-300.0,0.00019989,2]
[336661766,1725003032752,-568.49,0.0001999,2]
[336661767,1725003032764,-7665.51030059,0.0001999,2]
[336661768,1725003032776,-12592.97235622,0.0001999,2]
[336661769,1725003032786,-8354.3964955,0.0002,2]
[336661770,1725003032799,-8134.21617568,0.0002,2]
[336661801,1725003038716,-4630.43719979,0.0002,2]
[336661802,1725003038726,-20806.3048966,0.0002,2]
[336661803,1725003038735,-771.54,0.00020367,3]
[336661804,1725003038746,-87323.11723315,0.00020377,2]
[336661805,1725003038758,-7110.0,0.000204,2]
[336661806,1725003038768,-150.0,0.00021,2]
[336661807,1725003038778,-504.78479725,0.000212,2]
[336661808,1725003038788,-153.89,0.000266,31]
[336661809,1725003038798,-852.68118146,0.00029,2]
[336661810,1725003038808,-165.077228,0.0002939,2]
[336661811,1725003038818,-217.93081472,0.0003,120]
[336661812,1725003038828,-204.49079461,0.0003,30]
[336661813,1725003038839,-450.0,0.0003,120]
[336661814,1725003038849,-194.28657341,0.00030999,2]
[336661815,1725003038858,-203.98378544,0.00030999,2]
[336661817,1725003038867,-279.34289346,0.00030999,2]
[336661818,1725003038877,-500.0,0.00030999,2]
[336661820,1725003038887,-500.0,0.00030999,2]
[336661822,1725003038896,-500.0,0.00030999,2]
[336661824,1725003038908,-500.0,0.00030999,2]
[336661827,1725003038917,-500.0,0.00030999,2]
[336661830,1725003038927,-500.0,0.00030999,2]
[336661834,1725003038937,-500.0,0.00030999,2]
[336661835,1725003038947,-361.23433998,0.00030999,2]
[336661837,1725003038957,-500.0,0.00030999,2]
[336661839,1725003038968,-500.0,0.00030999,2]
[336661841,1725003038978,-44930.0516857,0.00031,2]
[336661842,1725003038988,-153.89,0.000311,31]
[336661844,1725003038997,-153.89,0.000311,31]
[336661846,1725003039006,-150.0,0.00031407,14]
[336661847,1725003039017,-150.0,0.00031407,14]
[336661848,1725003039027,-200.0,0.00031407,14]
[336661849,1725003039036,-2517.22755947,0.00031407,7]
[336661850,1725003039046,-490.0,0.00031407,30]
[336661851,1725003039056,-500.0,0.00031407,120]
[336661852,1725003039065,-7985.02986348,0.00031407,2]
[336661853,1725003039075,-500.0,0.000315,5]
[336661854,1725003039084,-522.0,0.00033517,2]
[336661855,1725003039093,-150.0,0.00033517,2]
[336661856,1725003039103,-150.0,0.000356,30]
[336661857,1725003039117,-365.774318,0.00035616,120]
[336661858,1725003039127,-20448.0,0.00035616,3]
[336661859,1725003039137,-31926.15,0.00035616,3]
[336661860,1725003039147,-26605.12,0.00035616,3]
[336661861,1725003039156,-153.89,0.000357,31]
[336661862,1725003039165,-153.89,0.000357,31]
[336661863,1725003039175,-150.0,0.00036517,2]
[336661864,1725003039185,-150.0,0.000366,30]
[336661865,1725003039194,-500.0,0.0003756,4]
[336661866,1725003039204,-200.0,0.000376,30]
[336661867,1725003039213,-1000.0,0.00038108,4]
[336661868,1725003039222,-500.0,0.00038356,120]
[336661869,1725003039232,-500.0,0.0003863,120]
[336661870,1725003039241,-500.0,0.00038901,120]
[336661871,1725003039251,-1372.45,0.00038902,120]
[336661872,1725003039260,-7146.99,0.00038902,8]
[336661873,1725003039269,-500.0,0.00038902,120]
[336661874,1725003039278,-623.72,0.00038902,120]
[336661875,1725003039287,-500.0,0.00038902,120]
[336661876,1725003039296,-500.0,0.00038902,120]
[336661877,1725003039306,-500.0,0.00038902,120]
[336661878,1725003039315,-500.0,0.00038902,120]
[336661879,1725003039324,-500.0,0.00038902,120]
[336661880,1725003039333,-500.0,0.00038902,120]
[336661881,1725003039343,-1035.72,0.00038902,120]
[336661882,1725003039352,-500.0,0.00038902,120]
[336661883,1725003039368,-729.39,0.00038902,120]
[336661884,1725003039380,-500.0,0.00038902,120]
[336661885,1725003039389,-500.0,0.00038902,120]
[336661886,1725003039398,-500.0,0.00038902,120]
[336661887,1725003039408,-500.0,0.00038902,120]
[336661888,1725003039416,-2024.8,0.00038902,120]
[336661889,1725003039425,-500.0,0.00038902,60]
[336661890,1725003039435,-500.0,0.00038902,120]
[336661891,1725003039444,-500.0,0.00038902,120]
[336661892,1725003039453,-500.0,0.00038902,120]
[336661893,1725003039465,-500.0,0.00038902,120]
[336661894,1725003039578,-500.0,0.00038902,120]
[336661895,1725003039588,-1055.47,0.00038902,120]
[336661896,1725003039598,-233.67,0.00038902,120]
[336661897,1725003039611,-578.95,0.00038902,120]
[336661898,1725003039622,-1076.79,0.00038902,120]
[336661899,1725003039632,-500.0,0.00038902,120]
[336661900,1725003039642,-542.62,0.00038902,120]
[336661901,1725003039651,-500.0,0.00038902,120]
[336661902,1725003039662,-269.43546121,0.00038902,120]
[336661903,1725003039672,-1028.95,0.00038902,120]
[336661904,1725003039681,-500.0,0.00038902,120]
[336661905,1725003039691,-500.0,0.00038902,120]
[336661906,1725003039702,-500.0,0.00038902,120]
[336661907,1725003039712,-500.0,0.00038902,120]
[336661908,1725003039722,-500.0,0.00038903,120]
[336661909,1725003039732,-484.77916953,0.00038903,120]
[336661910,1725003039741,-500.0,0.00038903,120]
[336661911,1725003039751,-500.0,0.00038903,120]
[336661912,1725003039761,-363.67542781,0.00038903,120]
[336661913,1725003039772,-500.0,0.00038903,120]
[336661914,1725003039782,-500.0,0.00038903,120]
[336661915,1725003039793,-500.0,0.00038903,120]
[336661916,1725003039804,-500.0,0.00038903,120]
[336661917,1725003039814,-500.0,0.00038903,120]
[336661918,1725003039825,-500.0,0.00038903,120]
[336661919,1725003039834,-182.1199528,0.00038903,120]
[336661920,1725003039844,-376.20215,0.00038903,120]
[336661921,1725003039853,-500.0,0.00038903,120]
[336661922,1725003039866,-348.46923334,0.00038903,120]
[336661923,1725003039876,-500.0,0.00038903,120]
[336661924,1725003039886,-500.0,0.00038903,120]
[336661925,1725003039896,-500.0,0.00038904,120]
[336661926,1725003039905,-1000.0,0.00039,39]
[336661927,1725003039915,-150.0,0.00039,30]
[336661928,1725003039925,-1000.0,0.00039006,4]
[336661929,1725003039935,-508.3813722,0.00039175,120]
[336661930,1725003039944,-1372.45,0.00039176,120]
[336661931,1725003039953,-7146.99,0.00039176,8]
[336661932,1725003039963,-623.72,0.00039176,120]
[336661933,1725003039973,-183.29381047,0.00039176,120]
[336661944,1725003040691,-500.0,0.00038903,120]
[336661945,1725003040701,-316.70618953,0.00039176,120]
[336661946,1725003040710,-500.0,0.00039176,120]
[336661947,1725003040720,-500.0,0.00039176,120]
[336661948,1725003040730,-500.0,0.00039176,120]
[336661949,1725003040741,-1035.72,0.00039176,120]
[336661950,1725003040751,-614.84,0.00039176,120]
[336661951,1725003040762,-729.39,0.00039176,120]
[336661952,1725003040772,-2024.8,0.00039176,120]
[336661953,1725003040784,-500.0,0.00039176,120]
[336661954,1725003040795,-500.0,0.00039176,120]
[336661955,1725003040805,-1055.47,0.00039176,120]
[336661956,1725003040815,-578.95,0.00039176,120]
[336661957,1725003040824,-1076.79,0.00039176,120]
[336661959,1725003040834,-500.0,0.00039176,120]
[336661960,1725003040844,-542.62,0.00039176,120]
[336661961,1725003040854,-1028.95,0.00039176,120]
[336661962,1725003040864,-500.0,0.00039176,120]
[336661963,1725003040874,-500.0,0.00039176,120]
[336661964,1725003040883,-500.0,0.00039177,120]
[336661965,1725003040894,-500.0,0.00039177,120]
[336661966,1725003040905,-500.0,0.00039177,120]
[336661967,1725003040914,-1372.45,0.0003945,120]
[336661968,1725003040925,-7146.99,0.0003945,8]
[336661969,1725003040935,-623.72,0.0003945,120]
[336661970,1725003040946,-500.0,0.0003945,120]
[336661971,1725003040958,-182.65,0.0003945,120]
[336661972,1725003040971,-186.19,0.0003945,120]
[336661973,1725003040981,-500.0,0.0003945,120]
[336661974,1725003040992,-1035.72,0.0003945,120]
[336661975,1725003041003,-729.39,0.0003945,120]
[336661976,1725003041013,-2024.8,0.0003945,120]
[336661977,1725003041022,-633.65,0.0003945,120]
[336661978,1725003041033,-500.0,0.0003945,120]
[336661979,1725003041042,-1055.47,0.0003945,120]
[336661980,1725003041052,-264.33004916,0.0003945,120]
[336662260,1725003046598,-500.0,0.00030999,2]
[336662262,1725003046607,-500.0,0.00030999,2]
[336662264,1725003046617,-500.0,0.00030999,2]
[336662266,1725003046627,-500.0,0.00030999,2]
[336662268,1725003046636,-500.0,0.00030999,2]
[336662270,1725003046646,-337.19046893,0.00030999,2]
[336662272,1725003046655,-6471.88,0.00038902,8]
[336662274,1725003046664,-500.0,0.00038902,120]
[336662276,1725003046674,-6471.88,0.00039176,8]
[336662278,1725003046683,-314.61995084,0.0003945,120]
[336662280,1725003046693,-1076.79,0.0003945,120]
[336662282,1725003046702,-500.0,0.0003945,120]
[336662284,1725003046711,-542.62,0.0003945,120]
[336662286,1725003046721,-1028.95,0.0003945,120]
[336662288,1725003046730,-500.0,0.0003945,120]
[336662290,1725003046739,-6471.88,0.0003945,8]
[336662292,1725003046749,-500.0,0.00039451,120]
[336662294,1725003046758,-366.52,0.00039451,120]
[336662296,1725003046768,-500.0,0.00039451,120]
[336662298,1725003046777,-1372.45,0.00039724,120]
[336662300,1725003046787,-623.72,0.00039724,120]
[336662302,1725003046797,-500.0,0.00039724,120]
[336662304,1725003046806,-531.78,0.00039724,120]
[336662306,1725003046817,-1035.72,0.00039724,120]
[336662309,1725003046828,-729.39,0.00039724,120]
[336662311,1725003046840,-2024.8,0.00039724,120]
[336662313,1725003046850,-500.0,0.00039724,120]
[336662315,1725003046862,-1055.47,0.00039724,120]
[336662317,1725003046872,-578.95,0.00039724,120]
[336662320,1725003046883,-1076.79,0.00039724,120]
[336662322,1725003046892,-500.0,0.00039724,120]
[336662323,1725003046901,-542.62,0.00039724,120]
[336662326,1725003046913,-1028.95,0.00039724,120]
[336662328,1725003046922,-500.0,0.00039724,120]
[336662330,1725003046931,-6471.88,0.00039724,8]
[336662332,1725003046940,-500.0,0.00039725,120]
[336662334,1725003046950,-500.0,0.00039725,120]
[336662336,1725003046959,-22170.94,0.0003989,3]
[336662338,1725003046969,-88888.0,0.000399,5]
[336662340,1725003046978,-1372.45,0.00039998,120]
[336662342,1725003046988,-623.72,0.00039998,120]
[336662344,1725003046997,-500.0,0.00039998,120]
[336662345,1725003047006,-1035.72,0.00039998,120]
[336662348,1725003047015,-729.39,0.00039998,120]
[336662350,1725003047024,-2024.8,0.00039998,120]
[336662352,1725003047033,-500.0,0.00039998,120]
[336662354,1725003047043,-1055.47,0.00039998,120]
[336662356,1725003047051,-578.95,0.00039998,120]
[336662358,1725003047060,-1076.79,0.00039998,120]
[336662360,1725003047069,-500.0,0.00039998,120]
[336662361,1725003047078,-542.62,0.00039998,120]
[336662364,1725003047090,-1028.95,0.00039998,120]
[336662366,1725003047100,-500.0,0.00039998,120]
[336662368,1725003047111,-6471.88,0.00039998,8]
[336662370,1725003047122,-500.0,0.00039999,120]
[336662373,1725003047132,-500.0,0.00039999,120]
[336662375,1725003047144,-35310.89473958,0.0004,7]
[336663752,1725003400274,165.077228,0.0001863,2]
[336663753,1725003810269,205.138889,0.00014247,2]
[336663756,1725003889629,165.077228,0.0001863,2]
[336663797,1725004232649,-211.0,0.0002,5]
[336663799,1725004232659,-286.720188,0.0002006,2]
[336663801,1725004232668,-3000.0,0.00021,2]
[336663803,1725004232678,-3000.0,0.0002101,2]
[336663805,1725004232688,-3000.0,0.0002102,2]
[336663808,1725004232698,-3000.0,0.0002103,2]
[336663810,1725004232707,-3000.0,0.0002104,2]
[336663811,1725004232716,-2528.01448064,0.0002105,2]
[336663882,1725004238854,-445.37812175,0.0002105,2]
[336663884,1725004238866,-26.60739761,0.0002105,2]
[336663886,1725004238876,-3000.0,0.0002106,2]
[336663888,1725004238887,-3000.0,0.0002107,2]
[336663890,1725004238896,-3000.0,0.0002108,2]
[336663892,1725004238906,-3000.0,0.0002109,2]
[336663893,1725004238917,-3000.0,0.000211,2]
[336663894,1725004238926,-3000.0,0.0002111,2]
[336663895,1725004238936,-3000.0,0.0002112,2]
[336663896,1725004238946,-3000.0,0.0002113,2]
[336663897,1725004238955,-3000.0,0.0002114,2]
[336663898,1725004238965,-3000.0,0.0002115,2]
[336663899,1725004238974,-3000.0,0.0002116,2]
[336663900,1725004238984,-3000.0,0.0002117,2]
[336663901,1725004238993,-3000.0,0.0002118,2]
[336663902,1725004239012,-3000.0,0.0002119,2]
[336663903,1725004239025,-3000.0,0.000212,2]
[336663904,1725004239036,-500.0,0.000212,2]
[336663905,1725004239046,-3000.0,0.0002121,2]
[336663907,1725004239055,-3000.0,0.0002122,2]
[336663908,1725004239065,-3000.0,0.0002123,2]
[336663909,1725004239074,-3000.0,0.0002124,2]
[336663910,1725004239084,-3000.0,0.0002125,2]
[336663912,1725004239093,-3000.0,0.0002126,2]
[336663914,1725004239102,-3000.0,0.0002127,2]
[336663916,1725004239112,-500.0,0.00021273,2]
[336663917,1725004239121,-3000.0,0.0002128,2]
[336663919,1725004239130,-5850.0,0.0002129,2]
[336663921,1725004239140,-1000.0,0.00021821,2]
[336663923,1725004239149,-1500.0,0.00022719,2]
[336663925,1725004239158,-500.0,0.00024,2]
[336663927,1725004239169,-500.0,0.00024274,2]
[336663929,1725004239178,-500.0,0.00024548,2]
[336663931,1725004239188,-200.0,0.00024658,15]
[336663933,1725004239197,-500.0,0.00024822,2]
[336663935,1725004239206,-271.80165431,0.00025096,2]
[336663937,1725004239215,-1000.0,0.00025479,2]
[336663939,1725004239225,-466.11994212,0.00025984,2]
[336663941,1725004239234,-600.0,0.00026991,2]
[336663943,1725004239243,-500.0,0.00028021,2]
[336663945,1725004239255,-500.0,0.00028051,2]
[336663947,1725004239265,-500.0,0.00028268,2]
[336663949,1725004239274,-500.0,0.00028321,2]
[336663951,1725004239284,-190.0,0.00028611,2]
[336663953,1725004239294,-499.3,0.00029347,2]
[336663955,1725004239304,-500.0,0.00029622,2]
[336663958,1725004239314,-500.0,0.00030391,7]
[336663960,1725004239323,-643.26989886,0.00030638,7]
[336663962,1725004239333,-500.0,0.00030874,7]
[336663964,1725004239342,-500.0,0.00030957,7]
[336663966,1725004239351,-150.0,0.00031434,14]
[336663968,1725004239360,-150.0,0.00031434,14]
[336663970,1725004239370,-200.0,0.00031434,14]
[336663972,1725004239380,-500.0,0.00031481,7]
[336663974,1725004239389,-500.0,0.00031571,7]
[336663976,1725004239398,-500.0,0.00031634,7]
[336663978,1725004239408,-500.0,0.00031779,7]
[336663980,1725004239417,-500.0,0.00032031,7]
[336663982,1725004239426,-500.69515597,0.00032632,7]
[336663984,1725004239435,-165.077228,0.00033425,2]
[336663986,1725004239445,-150.0,0.00033819,2]
[336663988,1725004239454,-500.0,0.00033827,7]
[336663990,1725004239463,-500.0,0.00034816,7]
[336663992,1725004239473,-500.0,0.00035415,7]
[336663994,1725004239482,-500.0,0.00035585,7]
[336663995,1725004239491,-150.0,0.000356,30]
[336663997,1725004239500,-500.0,0.00035616,7]
[336663999,1725004239511,-274.330738,0.00035616,120]
[336664017,1725004239648,-500.0,0.00035786,7]
[336664020,1725004239685,-210.2,0.000366,30]
[336664022,1725004239694,-1804.23092938,0.0003679,2]
[336664024,1725004239705,-1804.23092936,0.00037568,2]
[336664026,1725004239714,-207.7907237,0.00037709,2]
[336664028,1725004239723,-500.0,0.00037826,7]
[336664030,1725004239733,-900.0,0.00038006,7]
[336664032,1725004239742,-800.0,0.00038046,7]
[336664034,1725004239752,-500.0,0.0003812,7]
[336664036,1725004239762,-1804.23092936,0.00038345,2]
[336664038,1725004239771,-21971.52,0.00038346,3]
[336664040,1725004239781,-500.0,0.00038356,120]
[336664042,1725004239791,-376.20215,0.00038356,120]
[336664044,1725004239801,-500.0,0.00038356,120]
[336664046,1725004239811,-500.0,0.00038356,120]
[336664049,1725004239821,-500.0,0.00038356,120]
[336664051,1725004239832,-500.0,0.00038356,120]
[336664053,1725004239845,-500.0,0.00038356,120]
[336664055,1725004239854,-628.66,0.00038356,120]
[336664057,1725004239863,-500.0,0.00038356,120]
[336664059,1725004239873,-1037.86,0.00038356,120]
[336664061,1725004239883,-500.0,0.00038356,120]
[336664063,1725004239893,-500.0,0.00038356,120]
[336664065,1725004239902,-1687.33,0.00038356,120]
[336664067,1725004239912,-500.0,0.00038356,120]
[336664069,1725004239922,-500.0,0.00038356,120]
[336664071,1725004239933,-500.0,0.00038356,120]
[336664073,1725004239942,-500.0,0.00038356,120]
[336664074,1725004239951,-900.08,0.00038356,120]
[336664077,1725004239961,-531.68,0.00038356,120]
[336664078,1725004239971,-500.0,0.00038356,120]
[336664080,1725004239980,-500.0,0.00038356,120]
[336664082,1725004239990,-500.0,0.00038356,120]
[336664084,1725004239999,-514.68,0.00038356,120]
[336664086,1725004240009,-879.55,0.00038356,120]
[336664088,1725004240018,-500.0,0.00038356,120]
[336664090,1725004240027,-500.0,0.00038356,120]
[336664092,1725004240036,-500.0,0.00038356,120]
[336664094,1725004240045,-500.0,0.00038356,120]
[336664096,1725004240054,-500.0,0.00038356,120]
[336664098,1725004240064,-500.0,0.00038356,120]
[336664100,1725004240074,-500.0,0.00038356,120]
[336664102,1725004240083,-917.42,0.00038356,120]
[336664104,1725004240092,-500.0,0.00038356,120]
[336664106,1725004240103,-5780.89,0.00038356,8]
[336664108,1725004240113,-824.4,0.00038356,120]
[336664110,1725004240122,-500.0,0.00038356,120]
[336664112,1725004240131,-594.17,0.00038356,120]
[336664114,1725004240141,-500.0,0.00038356,120]
[336664116,1725004240150,-500.0,0.00038356,120]
[336664118,1725004240160,-194.28657341,0.00038609,15]
[336664120,1725004240170,-203.98378544,0.00038609,15]
[336664121,1725004240180,-279.34289346,0.00038609,15]
[336664123,1725004240189,-500.0,0.00038609,15]
[336664125,1725004240198,-500.0,0.00038609,15]
[336664128,1725004240212,-500.0,0.00038609,15]
[336664130,1725004240222,-500.0,0.00038609,15]
[336664132,1725004240232,-500.0,0.00038609,15]
[336664134,1725004240242,-500.0,0.00038609,15]
[336664136,1725004240252,-500.0,0.00038609,15]
[336664138,1725004240262,-500.0,0.00038609,15]
[336664140,1725004240271,-500.0,0.00038609,15]
[336664141,1725004240281,-631.40845684,0.00038609,15]
[336664144,1725004240292,-500.0,0.00038609,15]
[336664146,1725004240302,-26365.83,0.0003861,3]
[336664147,1725004240311,-16162.54822927,0.0003862,3]
[336664149,1725004240326,-489.79363594,0.0003862,3]
[336664194,1725004240858,-3499.22107067,0.0003862,3]
[336664288,1725004243702,-471.64233589,0.0003862,3]
[336664290,1725004243757,-9421.8,0.0003862,3]
[336664599,1725004246700,-500.0,0.00038356,120]
[336664601,1725004246709,-500.0,0.0003863,120]
[336664603,1725004246719,-460.07003581,0.0003863,120]
[336664605,1725004246729,-500.0,0.0003863,120]
[336664607,1725004246738,-628.66,0.0003863,120]
[336664609,1725004246748,-318.92125155,0.0003863,120]
[336664611,1725004246761,-1037.86,0.0003863,120]
[336664613,1725004246770,-1687.33,0.0003863,120]
[336664615,1725004246780,-500.0,0.0003863,120]
[336664617,1725004246791,-900.08,0.0003863,120]
[336664619,1725004246801,-531.68,0.0003863,120]
[336664621,1725004246811,-625.53,0.0003863,120]
[336664622,1725004246823,-500.0,0.0003863,120]
[336664624,1725004246839,-514.68,0.0003863,120]
[336664627,1725004246853,-879.55,0.0003863,120]
[336664629,1725004246863,-269.43546121,0.0003863,120]
[336664631,1725004246872,-500.0,0.0003863,120]
[336664633,1725004246882,-500.0,0.0003863,120]
[336664635,1725004246892,-500.0,0.0003863,120]
[336664637,1725004246901,-917.42,0.0003863,120]
[336664639,1725004246911,-5780.89,0.0003863,8]
[336664641,1725004246921,-824.4,0.0003863,120]
[336664643,1725004246931,-500.0,0.0003863,120]
[336664645,1725004246941,-594.17,0.0003863,120]
[336664647,1725004246951,-512.69,0.00038901,120]
[336664649,1725004246962,-600.03,0.00038901,120]
[336664651,1725004246973,-269.59151918,0.00038901,120]
[336664653,1725004246983,-500.0,0.00038901,120]
[336664655,1725004246993,-500.0,0.00038901,120]
[336664657,1725004247002,-500.0,0.00038901,60]
[336664659,1725004247014,-500.0,0.00038901,120]
[336664661,1725004247024,-500.0,0.00038902,120]
[336664663,1725004247034,-500.0,0.00038904,120]
[336664666,1725004247045,-628.66,0.00038904,120]
[336664668,1725004247055,-1037.86,0.00038904,120]
[336664670,1725004247065,-1687.33,0.00038904,120]
[336664672,1725004247075,-900.08,0.00038904,120]
[336664674,1725004247085,-531.68,0.00038904,120]
[336664676,1725004247094,-500.0,0.00038904,120]
[336664678,1725004247105,-514.68,0.00038904,120]
[336664680,1725004247114,-879.55,0.00038904,120]
[336664682,1725004247125,-500.0,0.00038904,120]
[336664684,1725004247135,-248.14,0.00038904,120]
[336664686,1725004247145,-500.0,0.00038904,120]
[336664688,1725004247156,-917.42,0.00038904,120]
[336664690,1725004247165,-5780.89,0.00038904,8]
[336664692,1725004247175,-824.4,0.00038904,120]
[336664694,1725004247186,-500.0,0.00038904,120]
[336664697,1725004247196,-594.17,0.00038904,120]
[336664699,1725004247207,-500.0,0.00038914,7]
[336664701,1725004247218,-150.0,0.00039,30]
[336664703,1725004247229,-500.0,0.00039064,120]